fUSD/lending_fUSD_20240129
["ID","MTS","AMOUNT","RATE_DAILY","PERIOD"]
[312972035,1706560240144,-583.16761494,0.00022302,2]
[312972036,1706560240154,-583.16761494,0.00022302,2]
[312972037,1706560240163,-583.16761494,0.00022302,2]
[312972038,1706560240172,-583.16761494,0.00022302,2]
[312972039,1706560240181,-583.16761494,0.00022302,2]
[312972040,1706560240191,-583.16761494,0.00022302,2]
[312972041,1706560240204,-583.16761494,0.00022302,2]
[312972042,1706560240213,-583.16761494,0.00022302,2]
[312972043,1706560240222,-583.16761494,0.00022302,2]
[312972044,1706560240232,-583.16761494,0.00022302,2]
[312972045,1706560240241,-583.16761494,0.00022302,2]
[312972046,1706560240250,-583.16761494,0.00022302,2]
[312972047,1706560240259,-583.16761494,0.00022302,2]
[312972048,1706560240269,-583.16761494,0.00022302,2]
[312972049,1706560240278,-583.16761494,0.00022302,2]
[312972050,1706560240287,-583.16761494,0.00022302,2]
[312972051,1706560240296,-583.16761494,0.00022302,2]
[312972052,1706560240305,-583.16761494,0.00022302,2]
[312972053,1706560240314,-583.16761494,0.00022302,2]
[312972054,1706560240324,-583.16761494,0.00022302,2]
[312972055,1706560240333,-583.16761494,0.00022302,2]
[312972056,1706560240342,-583.16761494,0.00022302,2]
[312972057,1706560240351,-583.16761494,0.00022302,2]
[312972058,1706560240360,-583.16761494,0.00022302,2]
[312972059,1706560240369,-583.16761494,0.00022302,2]
[312972060,1706560240378,-583.16761494,0.00022302,2]
[312972061,1706560240387,-583.16761494,0.00022302,2]
[312972062,1706560240396,-583.16761494,0.00022302,2]
[312972063,1706560240405,-563.72869443,0.00022302,2]
[312972064,1706560240414,-563.72869443,0.00022302,2]
[312972065,1706560240423,-563.72869443,0.00022302,2]
[312972066,1706560240432,-563.72869443,0.00022302,2]
[312972067,1706560240441,-563.72869443,0.00022302,2]
[312972068,1706560240454,-563.72869443,0.00022302,2]
[312972069,1706560240464,-563.72869443,0.00022302,2]
[312972070,1706560240474,-563.72869443,0.00022302,2]
[312972071,1706560240483,-563.72869443,0.00022302,2]
[312972072,1706560240492,-563.72869443,0.00022302,2]
[312972073,1706560240501,-563.72869443,0.00022302,2]
[312972074,1706560240510,-563.72869443,0.00022302,2]
[312972075,1706560240520,-563.72869443,0.00022302,2]
[312972076,1706560240529,-563.72869443,0.00022302,2]
[312972077,1706560240538,-563.72869443,0.00022302,2]
[312972078,1706560240547,-563.72869443,0.00022302,2]
[312972079,1706560240556,-563.72869443,0.00022302,2]
[312972080,1706560240565,-563.72869443,0.00022302,2]
[312972081,1706560240574,-563.72869443,0.00022302,2]
[312972082,1706560240583,-563.72869443,0.00022302,2]
[312972083,1706560240592,-563.72869443,0.00022302,2]
[312972084,1706560240601,-563.72869443,0.00022302,2]
[312972085,1706560240610,-563.72869443,0.00022302,2]
[312972086,1706560240619,-563.72869443,0.00022302,2]
[312972087,1706560240628,-563.72869443,0.00022302,2]
[312972088,1706560240637,-563.72869444,0.00022302,2]
[312972089,1706560240646,-563.72869443,0.00022302,2]
[312972090,1706560240655,-500.0,0.00022302,2]
[312972091,1706560240665,-500.0,0.00022302,2]
[312972092,1706560240674,-518.42606925,0.00022302,2]
[312972093,1706560240683,-353.15680645,0.00022303,2]
[312972094,1706560240692,-1884.80459892,0.00022303,2]
[312972095,1706560240703,-182.91550859,0.00022303,2]
[312972096,1706560240712,-3630.66984983,0.00022303,2]
[312972097,1706560240721,-258.16152368,0.00022303,4]
[312972098,1706560240730,-414.8091398,0.00022303,2]
[312972099,1706560240739,-195881.7353,0.00022303,2]
[312972100,1706560240748,-83921.405,0.00022303,2]
[312972101,1706560240757,-5422.3655,0.00022303,2]
[312972102,1706560240766,-4627.9433,0.00022303,2]
[312972103,1706560240776,-13110.8185,0.00022303,2]
[312972104,1706560240785,-1155.14658563,0.0002233,2]
[312972105,1706560240793,-308.74,0.00022336,2]
[312972106,1706560240803,-447.95,0.00022353,2]
[312972107,1706560240812,-219.03715244,0.00022379,2]
[312972108,1706560240824,-581.11304577,0.00022393,2]
[312972109,1706560240837,-500.0,0.00022401,2]
[312972110,1706560240846,-14198.30499158,0.00022401,2]
[312972111,1706560240855,-336.99413276,0.00022401,2]
[312972112,1706560240865,-2324.38136054,0.00022401,2]
[312972113,1706560240874,-156.49884071,0.00022401,2]
[312972114,1706560240883,-159.03735014,0.00022401,2]
[312972115,1706560240893,-181.0436353,0.00022401,2]
[312972116,1706560240903,-669.93186281,0.00022401,2]
[312972117,1706560240912,-691.03234566,0.00022402,2]
[312972118,1706560240921,-10100.08704134,0.00022402,2]
[312972119,1706560240930,-511268.6197,0.00022403,2]
[312972120,1706560240940,-6726.1536,0.00022403,2]
[312972121,1706560240949,-251.7004,0.00022403,2]
[312972122,1706560240959,-2605.49270958,0.0002245,2]
[312972123,1706560240968,-179956.8402041,0.00022453,2]
[312972124,1706560240977,-492.147,0.00022453,2]
[312972125,1706560240987,-417.2302,0.00022453,2]
[312972126,1706560240996,-2500.0,0.00022453,2]
[312972128,1706560241005,-155.3324332,0.00022501,2]
[312972130,1706560241014,-155.0,0.00022501,2]
[312972132,1706560241024,-158.30384599,0.00022501,2]
[312972134,1706560241033,-1244.35715284,0.00022501,2]
[312972136,1706560241042,-2789.00729357,0.00022501,2]
[312972138,1706560241051,-155.77332188,0.00022501,2]
[312972139,1706560241061,-3727.53835644,0.00022501,4]
[312972141,1706560241070,-162.96938674,0.00022501,2]
[312972143,1706560241079,-475.44124884,0.00022501,2]
[312972145,1706560241088,-155.3207105,0.00022501,2]
[312972147,1706560241098,-213.91996154,0.00022501,2]
[312972149,1706560241107,-156.1233509,0.00022501,2]
[312972151,1706560241116,-155.9432364,0.00022501,2]
[312972153,1706560241125,-493.45959145,0.00022501,2]
[312972155,1706560241134,-161.34600903,0.00022501,2]
[312972157,1706560241143,-157.19362422,0.00022501,2]
[312972159,1706560241153,-401.88899357,0.00022501,2]
[312972161,1706560241162,-518.32067458,0.00022501,2]
[312972162,1706560241171,-500.0,0.00022501,2]
[312972163,1706560241180,-235.2545301,0.00022501,2]
[312972164,1706560241189,-1066.91620343,0.00022501,2]
[312972165,1706560241198,-241.87504657,0.00022501,2]
[312972166,1706560241207,-270.34902389,0.00022501,2]
[312972167,1706560241217,-337.6640189,0.00022501,2]
[312972168,1706560241226,-2545.01180366,0.00022501,2]
[312972169,1706560241235,-1365.83587331,0.00022501,2]
[312972170,1706560241244,-410.8508133,0.00022501,2]
[312972171,1706560241254,-197.39376234,0.00022501,2]
[312972172,1706560241263,-1863.19236501,0.00022501,2]
[312972173,1706560241272,-161.10503934,0.00022501,2]
[312972174,1706560241281,-409.19349938,0.00022501,2]
[312972175,1706560241289,-155.19414547,0.00022502,2]
[312972176,1706560241298,-219.47473945,0.00022502,2]
[312972177,1706560241308,-196.2404476,0.00022504,2]
[312972178,1706560241317,-465.0,0.00022504,2]
[312972179,1706560241326,-335.75552564,0.00022539,2]
[312972180,1706560241335,-426.37,0.00022543,2]
[312972181,1706560241344,-4938.7382,0.00022552,2]
[312972182,1706560241353,-486.6682,0.00022552,2]
[312972183,1706560241363,-39338.543,0.00022553,2]
[312972184,1706560241372,-3408.2929,0.00022553,2]
[312972185,1706560241381,-100000.0,0.00022553,2]
[312972186,1706560241390,-465.0,0.00022565,2]
[312972187,1706560241399,-155.0,0.0002261,2]
[312972188,1706560241409,-465.0,0.00022625,2]
[312972189,1706560241419,-663.17595373,0.00022651,2]
[312972190,1706560241428,-500.0,0.00022653,2]
[312972191,1706560241437,-197952.0564,0.00022653,2]
[312972192,1706560241446,-663.17595373,0.00022653,2]
[312972193,1706560241455,-1155.14658563,0.00022658,2]
[312972194,1706560241464,-465.0,0.00022686,2]
[312972195,1706560241473,-465.0,0.00022746,2]
[312972196,1706560241483,-247.42374992,0.0002276,2]
[312972197,1706560241492,-157.64331235,0.00022763,2]
[312972198,1706560241501,-22078.96451363,0.0002277,2]
[312972199,1706560241510,-465.0,0.00022807,2]
[312972200,1706560241520,-1328.18221472,0.00022828,6]
[312972201,1706560241529,-465.0,0.00022867,2]
[312972202,1706560241538,-581.11304577,0.0002289,2]
[312972203,1706560241547,-1000.0,0.00022896,2]
[312972204,1706560241556,-18424.9427,0.00022896,2]
[312972205,1706560241565,-16387.80354433,0.000229,2]
[312972206,1706560241575,-2000.0,0.000229,2]
[312972207,1706560241584,-200.0,0.000229,2]
[312972208,1706560241593,-210.0,0.000229,2]
[312972209,1706560241603,-506863.61444946,0.000229,2]
[312972210,1706560241612,-465.0,0.00022928,2]
[312972211,1706560241621,-159.60895614,0.00022939,2]
[312972212,1706560241630,-150.0,0.00022955,2]
[312972213,1706560241641,-465.0,0.00022988,2]
[312972214,1706560241650,-155.26661927,0.0002299,2]
[312972215,1706560241659,-155.0,0.0002299,2]
[312972216,1706560241668,-155.24946774,0.0002299,2]
[312972217,1706560241679,-302.67635463,0.00022991,2]
[312972218,1706560241688,-202.0,0.00022993,2]
[312972219,1706560241697,-155.73440965,0.00022993,2]
[312972220,1706560241708,-155.93265211,0.00022993,2]
[312972221,1706560241717,-929.50886508,0.00022993,2]
[312972222,1706560241726,-155.86402743,0.00022993,2]
[312972223,1706560241736,-346.30115323,0.00022993,2]
[312972224,1706560241745,-156.38195062,0.00022993,2]
[312972225,1706560241754,-412.5888739,0.00022993,2]
[312972226,1706560241763,-269.01579982,0.00022993,2]
[312972227,1706560241772,-260.29941624,0.00022993,2]
[312972228,1706560241781,-383.76753435,0.00022994,2]
[312972229,1706560241791,-157.86817586,0.00022994,2]
[312972230,1706560241800,-156.43646517,0.00022994,2]
[312972231,1706560241809,-2306.20037107,0.00022994,2]
[312972232,1706560241821,-427.02443553,0.00022994,2]
[312972233,1706560241830,-156.70843451,0.00022994,2]
[312972234,1706560241839,-156.25595913,0.00022994,2]
[312972235,1706560241848,-157.35382223,0.00022994,2]
[312972236,1706560241858,-277.17272826,0.00022994,2]
[312972237,1706560241869,-157.81640261,0.00022994,2]
[312972238,1706560241878,-158.32950144,0.00022995,2]
[312972239,1706560241887,-190.54461324,0.00022995,2]
[312972240,1706560241899,-156.37062616,0.00022995,2]
[312972241,1706560241909,-285.22294561,0.00022995,2]
[312972242,1706560241918,-196.65971278,0.00022995,2]
[312972243,1706560241927,-155.44390996,0.00022995,2]
[312972244,1706560241937,-226.87966989,0.00022995,2]
[312972245,1706560241946,-206.73159676,0.00022995,2]
[312972246,1706560241955,-228.71014256,0.00022995,2]
[312972247,1706560241964,-261.17719989,0.00022995,2]
[312972248,1706560241974,-156.2918762,0.00022995,2]
[312972249,1706560241983,-1813.68084069,0.00022996,2]
[312972250,1706560241993,-555.31725152,0.00022996,2]
[312972251,1706560242003,-1311.01209827,0.00022996,2]
[312972252,1706560242012,-156.62849969,0.00022996,2]
[312972253,1706560242021,-507.36267549,0.00022996,2]
[312972254,1706560242030,-178.94185082,0.00022996,2]
[312972255,1706560242040,-160.02352615,0.00022996,2]
[312972256,1706560242050,-1141.43858445,0.00022996,2]
[312972257,1706560242060,-324.53325712,0.00022996,2]
[312972258,1706560242069,-200.4169865,0.00022996,2]
[312972259,1706560242078,-21091.88345546,0.00023,2]
[312972260,1706560242087,-465.0,0.00023049,2]
[312972261,1706560242096,-465.0,0.0002311,2]
[312972262,1706560242106,-1155.14658563,0.00023142,2]
[312972263,1706560242115,-465.0,0.0002317,2]
[312972264,1706560242124,-465.0,0.00023231,2]
[312972265,1706560242133,-150.0,0.00023325,2]
[312972266,1706560242142,-157.39113118,0.00023325,2]
[312972267,1706560242151,-150.0,0.00023325,2]
[312972268,1706560242160,-157.39113118,0.00023325,2]
[312972269,1706560242172,-447.95,0.00023418,2]
[312972270,1706560242182,-753.22,0.00023423,2]
[312972271,1706560242191,-159.60895614,0.00023476,2]
[312972272,1706560242200,-159.60895614,0.00024014,2]
[312972273,1706560242209,-150.0,0.00024325,2]
[312972274,1706560242219,-979.42,0.00024384,2]
[312972275,1706560242229,-1218.36,0.00024384,2]
[312972276,1706560242238,-447.95,0.00024482,2]
[312972277,1706560242248,-800.0,0.00024526,2]
[312972278,1706560242257,-159.60895614,0.00024551,2]
[312972279,1706560242266,-308.74,0.000246,2]
[312972280,1706560242275,-250.0,0.00024658,2]
[312972281,1706560242285,-550.0,0.00025,3]
[312972282,1706560242451,-208.31498309,0.00025,2]
[312972283,1706560242461,-753.22,0.00025067,2]
[312972284,1706560242470,-159.60895614,0.00025089,2]
[312972285,1706560242479,-447.95,0.00025546,2]
[312972286,1706560242488,-159.60895614,0.00025626,2]
[312972287,1706560242498,-150.0,0.00026079,2]
[312972288,1706560242506,-159.60895614,0.00026164,2]
[312972289,1706560242515,-2668.43349937,0.00026517,3]
[312972290,1706560242524,-159.60895614,0.00026702,2]
[312972291,1706560242533,-753.22,0.00026711,2]
[312972292,1706560242542,-282.49,0.000268,2]
[312972293,1706560242552,-308.74,0.00026864,2]
[312972294,1706560242561,-600.0,0.00027,3]
[312972295,1706560242570,-416.8373,0.00027,2]
[312972296,1706560242579,-159.60895614,0.00027239,2]
[312972297,1706560242588,-800.0,0.00027251,2]
[312972298,1706560242597,-298.76,0.00027397,2]
[312972299,1706560242606,-477.59,0.00027671,2]
[312972300,1706560242616,-298.76,0.00027686,2]
[312972301,1706560242626,-159.60895614,0.00027777,2]
[312972302,1706560242635,-19156.27488788,0.000279,2]
[312972303,1706560242644,-298.76,0.00027974,2]
[312972304,1706560242653,-298.76,0.00028262,2]
[312972305,1706560242662,-159.60895614,0.00028314,2]
[312972306,1706560242672,-753.22,0.00028355,2]
[312972307,1706560242681,-298.76,0.00028551,2]
[312972308,1706560242690,-477.59,0.00028695,2]
[312972309,1706560242700,-298.76,0.00028839,2]
[312972310,1706560242711,-159.60895614,0.00028852,2]
[312972311,1706560242721,-2706.0,0.000291,2]
[312972312,1706560242730,-2782.0,0.000291,2]
[312972313,1706560242739,-298.76,0.00029128,2]
[312972314,1706560242748,-308.74,0.00029128,2]
[312972315,1706560242758,-159.60895614,0.00029389,2]
[312972316,1706560242767,-298.76,0.00029416,2]
[312972317,1706560242776,-298.76,0.00029704,2]
[312972318,1706560242786,-477.59,0.00029719,2]
[312972319,1706560242795,-159.60895614,0.00029927,2]
[312972320,1706560242804,-800.0,0.00029977,2]
[312972321,1706560242813,-298.76,0.00029993,2]
[312972322,1706560242824,-753.22,0.00029998,2]
[312972323,1706560242833,-4961.49630549,0.0003,4]
[312972324,1706560242842,-155.0,0.0003,2]
[312972325,1706560242851,-70046.64853076,0.0003,4]
[312972326,1706560242861,-9657.29212585,0.0003,2]
[312972327,1706560242871,-1967.58824804,0.0003,2]
[312972328,1706560242880,-330.0,0.0003,4]
[312972329,1706560242889,-833.33333,0.0003,2]
[312972330,1706560242899,-833.33333,0.0003,2]
[312972331,1706560242909,-833.33333,0.0003,2]
[312972332,1706560242918,-833.33334,0.0003,2]
[312972333,1706560242928,-833.33333,0.0003,2]
[312972334,1706560242937,-833.33334,0.0003,2]
[312972335,1706560242948,-1328.18221472,0.00030221,17]
[312972336,1706560242957,-200.0,0.00030265,2]
[312972337,1706560242967,-7999.99,0.00030281,14]
[312972338,1706560242976,-298.76,0.00030281,2]
[312972339,1706560242985,-759.05,0.00030284,2]
[312972340,1706560242995,-159.60895614,0.00030464,2]
[312972341,1706560243005,-298.76,0.00030569,2]
[312972342,1706560243014,-477.59,0.00030743,2]
[312972343,1706560243023,-2668.43349937,0.00030831,5]
[312972344,1706560243033,-298.76,0.00030858,2]
[312972345,1706560243042,-159.60895614,0.00031002,2]
[312972346,1706560243051,-298.76,0.00031146,2]
[312972347,1706560243061,-308.74,0.00031392,2]
[312972348,1706560243070,-298.76,0.00031435,2]
[312972349,1706560243079,-180.0,0.00031644,2]
[312972350,1706560243088,-197.92,0.00031644,2]
[312972351,1706560243097,-298.76,0.00031723,2]
[312972352,1706560243106,-477.59,0.00031767,2]
[312972353,1706560243115,-213455.781325,0.000318,3]
[312972354,1706560243124,-11699.87,0.00032,2]
[312972355,1706560243133,-298.76,0.00032011,2]
[312972356,1706560243142,-372.4908657,0.00032169,7]
[312972357,1706560243153,-422.52156886,0.00032169,7]
[312972358,1706560243162,-177.24540149,0.00032169,6]
[312972359,1706560243171,-654.10329087,0.00032169,7]
[312972360,1706560243181,-179.87840499,0.00032169,7]
[312972361,1706560243190,-261.77055783,0.00032169,6]
[312972362,1706560243200,-298.76,0.000323,2]
[312972363,1706560243209,-298.76,0.00032588,2]
[312972364,1706560243218,-800.0,0.00032702,2]
[312972365,1706560243227,-298.76,0.00032877,2]
[312972366,1706560243237,-186.53,0.00032877,2]
[312972367,1706560243246,-200.0,0.00033,120]
[312972368,1706560243255,-308.74,0.00033656,2]
[312972369,1706560243264,-1000.0,0.00033829,2]
[312972370,1706560243273,-200.0,0.00034,120]
[312972371,1706560243282,-200.0,0.00034048,2]
[312972372,1706560243291,-2278.788,0.00034541,2]
[312972373,1706560243300,-191.122,0.00034541,2]
[312972374,1706560243309,-1204.24,0.000348,2]
[312972375,1706560243319,-1204.24,0.000348,2]
[312972376,1706560243328,-1204.24,0.000348,2]
[312972377,1706560243337,-1204.24,0.000348,2]
[312972378,1706560243346,-1204.24,0.000348,2]
[312972379,1706560243355,-1204.24,0.000348,2]
[312972380,1706560243364,-1204.24,0.000348,2]
[312972381,1706560243373,-1204.24,0.000348,2]
[312972382,1706560243383,-1204.24,0.000348,2]
[312972383,1706560243392,-1204.24,0.000348,2]
[312972384,1706560243401,-1204.24,0.000348,2]
[312972385,1706560243410,-1204.24,0.000348,2]
[312972386,1706560243419,-1204.24,0.000348,2]
[312972387,1706560243428,-1204.24,0.000348,2]
[312972388,1706560243437,-1204.24,0.000348,2]
[312972389,1706560243446,-1204.24,0.000348,2]
[312972390,1706560243455,-1204.24,0.000348,2]
[312972391,1706560243465,-1204.24,0.000348,2]
[312972392,1706560243474,-1204.24,0.000348,2]
[312972393,1706560243483,-1204.24,0.000348,2]
[312972394,1706560243493,-153.54,0.000348,2]
[312972395,1706560243502,-539.62569247,0.000349,2]
[312972396,1706560243511,-539.62569247,0.000349,2]
[312972397,1706560243521,-539.62569247,0.000349,2]
[312972398,1706560243530,-539.62569247,0.000349,2]
[312972399,1706560243538,-2136.77629159,0.00035,4]
[312972400,1706560243548,-5000.0,0.00035,7]
[312972401,1706560243557,-345.60115126,0.00035,7]
[312972402,1706560243566,-200.0,0.00035,120]
[312972403,1706560243575,-190.411,0.00035,4]
[312972405,1706560243584,-2936.13420756,0.00035,2]
[312972407,1706560243593,-2668.43349937,0.00035145,7]
[312972409,1706560243603,-979.42,0.00035616,2]
[312972411,1706560243612,-1218.36,0.00035616,2]
[312972413,1706560243622,-308.74,0.00035919,2]
[312972415,1706560243631,-200.0,0.00036,120]
[312972417,1706560243641,-267.91387149,0.00037,120]
[312972418,1706560243650,-3630.66984981,0.00037129,2]
[312972419,1706560243659,-258.16152366,0.00037129,7]
[312972420,1706560243669,-414.8091398,0.00037129,2]
[312972421,1706560243678,-539.62569247,0.00037253,2]
[312972424,1706560243687,-1884.80459891,0.00037266,2]
[312972428,1706560243698,-272.55804948,0.00037302,10]
[312972431,1706560243708,-4921.66884322,0.00037594,2]
[312972434,1706560243717,-23686.11796356,0.00037692,15]
[312972436,1706560243727,-6125.89428523,0.00037692,8]
[312972438,1706560243736,-3076.36328083,0.00037692,15]
[312972440,1706560243745,-12004.85742425,0.00037692,15]
[312972442,1706560243754,-22126.61280946,0.00037692,15]
[312972444,1706560243764,-165.03648676,0.00037701,5]
[312972446,1706560243774,-200.0,0.00037831,2]
[312972448,1706560243783,-170.6052538,0.00037897,2]
[312972450,1706560243792,-157.39113118,0.00037899,2]
[312972451,1706560243802,-150.0,0.00037899,2]
[312972453,1706560243811,-10700.0,0.000379,13]
[312972454,1706560243822,-664935.694079,0.000379,3]
[312972456,1706560243833,-150.0,0.00038,12]
[312972457,1706560243842,-196.83604684,0.00038141,2]
[312972458,1706560243851,-308.74,0.00038183,2]
[312972460,1706560243861,-159.71313441,0.00038252,2]
[312972462,1706560243871,-5217.54703637,0.000383,11]
[312972463,1706560243880,-1000.0,0.000384,2]
[312972464,1706560243889,-500.0,0.000384,2]
[312972465,1706560243899,-4495.03986899,0.000385,7]
[312972466,1706560243909,-561.26,0.000385,3]
[312972467,1706560243918,-4984.6726854,0.000388,2]
[312972468,1706560243927,-4984.67268535,0.000388,2]
[312972469,1706560243936,-4984.67268535,0.000388,2]
[312972470,1706560243945,-4984.67268535,0.000388,2]
[312972471,1706560243955,-4984.67268535,0.000388,2]
[312972472,1706560243964,-4984.67268535,0.000388,2]
[312972473,1706560243973,-4984.67268535,0.000388,2]
[312972474,1706560243982,-4984.67268535,0.000388,2]
[312972475,1706560243992,-4984.67268535,0.000388,2]
[312972476,1706560244001,-4984.67268535,0.000388,2]
[312972477,1706560244010,-4984.67268535,0.000388,2]
[312972478,1706560244019,-4984.67268535,0.000388,2]
[312972479,1706560244028,-4984.67268535,0.000388,2]
[312972480,1706560244037,-4984.67268535,0.000388,2]
[312972481,1706560244046,-4984.67268535,0.000388,2]
[312972482,1706560244055,-4984.67268535,0.000388,2]
[312972483,1706560244065,-4984.67268535,0.000388,2]
[312972484,1706560244074,-4984.67268535,0.000388,2]
[312972485,1706560244083,-4984.67268535,0.000388,2]
[312972486,1706560244092,-4984.67268535,0.000388,2]
[312972487,1706560244102,-2308.50039725,0.0003888,2]
[312972488,1706560244111,-2308.50039723,0.0003888,2]
[312972489,1706560244120,-2308.50039723,0.0003888,2]
[312972490,1706560244130,-2308.50039723,0.0003888,2]
[312972491,1706560244138,-2308.50039723,0.0003888,2]
[312972493,1706560244148,-282.60808243,0.0003898,2]
[312972494,1706560244157,-1431.73512433,0.00039,2]
[312972495,1706560244166,-621.60218478,0.00039,4]
[312972496,1706560244175,-978.30213314,0.00039,4]
[312972497,1706560244185,-197.53428177,0.00039,4]
[312972498,1706560244194,-176.69,0.00039,2]
[312972499,1706560244204,-2308.50039723,0.00039067,2]
[312972500,1706560244213,-2668.43349937,0.00039458,9]
[312972501,1706560244222,-353.14,0.00039548,2]
[312972502,1706560244231,-5217.54703627,0.00039618,13]
[312972503,1706560244240,-1204.24,0.000397,3]
[312972504,1706560244249,-1204.24,0.000397,3]
[312972505,1706560244258,-1204.24,0.000397,3]
[312972506,1706560244267,-1204.24,0.000397,3]
[312972507,1706560244276,-1204.24,0.000397,3]
[312972508,1706560244285,-1204.24,0.000397,3]
[312972509,1706560244294,-1204.24,0.000397,3]
[312972510,1706560244304,-1204.24,0.000397,3]
[312972511,1706560244313,-1204.24,0.000397,3]
[312972512,1706560244322,-1204.24,0.000397,3]
[312972513,1706560244331,-1204.24,0.000397,3]
[312972514,1706560244341,-1204.24,0.000397,3]
[312972515,1706560244350,-1204.24,0.000397,3]
[312972516,1706560244359,-1204.24,0.000397,3]
[312972517,1706560244368,-1204.24,0.000397,3]
[312972518,1706560244377,-1204.24,0.000397,3]
[312972519,1706560244386,-1204.24,0.000397,3]
[312972520,1706560244395,-1204.24,0.000397,3]
[312972521,1706560244404,-1204.24,0.000397,3]
[312972522,1706560244413,-1204.24,0.000397,3]
[312972523,1706560244422,-153.54,0.000397,3]
[312972524,1706560244431,-153.54,0.000397,3]
[312972525,1706560244440,-320.0,0.00039971,5]
[312972526,1706560244449,-500.0,0.00039999,31]
[312972527,1706560244458,-500.0,0.00039999,31]
[312972528,1706560244468,-500.0,0.00039999,31]
[312972529,1706560244476,-500.0,0.00039999,31]
[312972530,1706560244486,-500.0,0.00039999,31]
[312972531,1706560244495,-500.0,0.00039999,31]
[312972532,1706560244504,-500.0,0.00039999,31]
[312972533,1706560244513,-500.0,0.00039999,31]
[312972534,1706560244522,-500.0,0.00039999,31]
[312972535,1706560244531,-500.0,0.00039999,31]
[312972536,1706560244540,-181.30356702,0.00039999,31]
[312972537,1706560244549,-500.0,0.00039999,31]
[312972538,1706560244558,-500.0,0.00039999,31]
[312972539,1706560244567,-500.0,0.00039999,31]
[312972540,1706560244576,-400.0,0.00039999,31]
[312972541,1706560244585,-500.0,0.00039999,31]
[312972542,1706560244594,-500.0,0.00039999,31]
[312972543,1706560244604,-500.0,0.00039999,31]
[312972544,1706560244613,-500.0,0.00039999,31]
[312972545,1706560244621,-246.33493734,0.00039999,31]
[312972546,1706560244631,-216.4817904,0.00039999,31]
[312972547,1706560244640,-500.0,0.00039999,31]
[312972548,1706560244649,-500.0,0.00039999,31]
[312972549,1706560244658,-500.0,0.00039999,31]
[312972550,1706560244667,-500.0,0.00039999,31]
[312972551,1706560244678,-500.0,0.00039999,31]
[312972552,1706560244687,-500.0,0.00039999,31]
[312972553,1706560244698,-176.19612298,0.00039999,31]
[312972554,1706560244707,-500.0,0.00039999,31]
[312972555,1706560244716,-500.0,0.00039999,31]
[312972556,1706560244725,-500.0,0.00039999,31]
[312972557,1706560244734,-500.0,0.00039999,31]
[312972558,1706560244744,-500.0,0.00039999,31]
[312972559,1706560244753,-500.0,0.00039999,31]
[312972560,1706560244762,-500.0,0.00039999,31]
[312972561,1706560244772,-500.0,0.00039999,31]
[312972562,1706560244781,-500.0,0.00039999,31]
[312972563,1706560244790,-500.0,0.00039999,31]
[312972564,1706560244799,-500.0,0.00039999,31]
[312972565,1706560244809,-500.0,0.00039999,31]
[312972566,1706560244818,-500.0,0.00039999,31]
[312972567,1706560244830,-500.0,0.00039999,31]
[312972568,1706560244839,-500.0,0.00039999,31]
[312972569,1706560244848,-500.0,0.00039999,31]
[312972570,1706560244857,-500.0,0.00039999,31]
[312972571,1706560244868,-500.0,0.00039999,31]
[312972572,1706560244877,-500.0,0.00039999,31]
[312972573,1706560244886,-352.98667443,0.00039999,31]
[312972574,1706560244895,-500.0,0.00039999,31]
[312972575,1706560244906,-500.0,0.00039999,31]
[312972576,1706560244916,-500.0,0.00039999,31]
[312972577,1706560244925,-211.50834888,0.00039999,31]
[312972578,1706560244935,-500.0,0.00039999,31]
[312972579,1706560244944,-500.0,0.00039999,31]
[312972580,1706560244954,-500.0,0.00039999,31]